fUSD/lending_fUSD_20250602
["ID","MTS","AMOUNT","RATE_DAILY","PERIOD"]
[363782705,1748869852427,-420.0,0.00019589,2]
[363782707,1748869852436,-420.0,0.00019589,2]
[363782709,1748869852446,-420.0,0.00019589,2]
[363782711,1748869852457,-420.0,0.00019589,2]
[363782713,1748869852467,-420.0,0.00019589,2]
[363782715,1748869852476,-420.0,0.00019589,2]
[363782717,1748869852486,-420.0,0.00019589,2]
[363782718,1748869852496,-178.946867,0.00019589,2]
[363782720,1748869852506,-420.0,0.00019589,2]
[363782721,1748869852515,-420.0,0.00019589,2]
[363782723,1748869852525,-496.37708953,0.00019589,2]
[363782725,1748869852534,-420.0,0.00019589,2]
[363782727,1748869852544,-420.0,0.00019589,2]
[363782729,1748869852554,-420.0,0.00019589,2]
[363782731,1748869852564,-420.0,0.00019589,2]
[363782733,1748869852575,-420.0,0.00019589,2]
[363782735,1748869852585,-420.0,0.00019589,2]
[363782737,1748869852595,-420.0,0.00019589,2]
[363782739,1748869852605,-420.0,0.00019589,2]
[363782741,1748869852615,-449.13399574,0.00019589,2]
[363782743,1748869852624,-420.0,0.00019589,2]
[363782745,1748869852634,-420.0,0.00019589,2]
[363782747,1748869852644,-420.0,0.00019589,2]
[363782749,1748869852654,-468.04,0.00019589,2]
[363782751,1748869852664,-420.0,0.00019589,2]
[363782753,1748869852674,-420.0,0.00019589,2]
[363782755,1748869852684,-420.0,0.00019589,2]
[363782757,1748869852693,-420.0,0.00019589,2]
[363782758,1748869852703,-420.0,0.00019589,2]
[363782760,1748869852713,-420.0,0.00019589,2]
[363782762,1748869852723,-420.0,0.00019589,2]
[363782764,1748869852733,-420.0,0.00019589,2]
[363782766,1748869852742,-420.0,0.00019589,2]
[363782768,1748869852752,-420.0,0.00019589,2]
[363782770,1748869852763,-420.0,0.00019589,2]
[363782772,1748869852772,-420.0,0.00019589,2]
[363782774,1748869852782,-420.0,0.00019589,2]
[363782776,1748869852792,-420.0,0.00019589,2]
[363782778,1748869852802,-432.24,0.00019589,2]
[363782780,1748869852811,-420.0,0.00019589,2]
[363782782,1748869852822,-485.8,0.00019589,2]
[363782784,1748869852832,-420.0,0.00019589,2]
[363782786,1748869852841,-420.0,0.00019589,2]
[363782788,1748869852851,-420.0,0.00019589,2]
[363782790,1748869852862,-420.0,0.00019589,2]
[363782792,1748869852872,-420.0,0.00019589,2]
[363782794,1748869852881,-420.0,0.00019589,2]
[363782796,1748869852891,-420.0,0.00019589,2]
[363782798,1748869852901,-420.0,0.00019589,2]
[363782800,1748869852911,-420.0,0.00019589,2]
[363782802,1748869852920,-420.0,0.00019589,2]
[363782804,1748869852930,-420.0,0.00019589,2]
[363782806,1748869852939,-420.0,0.00019589,2]
[363782808,1748869852950,-242.42389439,0.00019589,2]
[363782810,1748869852960,-420.0,0.00019589,2]
[363782812,1748869852969,-420.0,0.00019589,2]
[363782814,1748869852979,-420.0,0.00019589,2]
[363782816,1748869852989,-498.01,0.00019589,2]
[363782818,1748869852999,-420.0,0.00019589,2]
[363782820,1748869853008,-420.0,0.00019589,2]
[363782821,1748869853018,-1178.71,0.00019589,2]
[363782823,1748869853027,-1215.12,0.00019589,2]
[363782825,1748869853037,-656.62,0.00019589,2]
[363782827,1748869853047,-420.0,0.00019589,2]
[363782829,1748869853057,-420.0,0.00019589,2]
[363782831,1748869853067,-420.0,0.00019589,2]
[363782833,1748869853076,-420.0,0.00019589,2]
[363782834,1748869853086,-420.0,0.00019589,2]
[363782835,1748869853096,-851.99,0.00019589,2]
[363782836,1748869853105,-695.29,0.00019589,2]
[363782838,1748869853114,-1352.67,0.00019589,2]
[363782839,1748869853124,-420.0,0.00019589,2]
[363782840,1748869853133,-604.89,0.00019589,2]
[363782841,1748869853143,-15295.8,0.00019589,2]
[363782842,1748869853151,-364.48,0.00019589,2]
[363782843,1748869853161,-420.0,0.00019589,2]
[363782844,1748869853171,-420.0,0.00019589,2]
[363782845,1748869853181,-219.74588097,0.00019589,2]
[363782846,1748869853191,-420.0,0.00019589,2]
[363782847,1748869853201,-420.0,0.00019589,2]
[363782848,1748869853211,-420.0,0.00019589,2]
[363782849,1748869853220,-229.58,0.00019589,2]
[363782850,1748869853230,-420.0,0.00019589,2]
[363782851,1748869853241,-1073.37,0.00019589,2]
[363782852,1748869853254,-704.81,0.00019589,2]
[363782853,1748869853264,-420.0,0.00019589,2]
[363782854,1748869853273,-420.0,0.00019589,2]
[363782855,1748869853284,-1021.91,0.00019589,2]
[363782856,1748869853294,-420.0,0.00019589,2]
[363782857,1748869853303,-1599.29,0.00019589,2]
[363782858,1748869853313,-420.0,0.00019589,2]
[363782859,1748869853323,-462.74,0.00019589,2]
[363782860,1748869853333,-420.0,0.00019589,2]
[363782861,1748869853343,-505.66,0.00019589,2]
[363782862,1748869853353,-4497.37,0.00019589,2]
[363782863,1748869853364,-420.0,0.00019589,2]
[363782864,1748869853374,-420.0,0.00019589,2]
[363782865,1748869853385,-420.0,0.00019589,2]
[363782866,1748869853395,-3829.57,0.00019589,2]
[363782867,1748869853406,-420.0,0.00019589,2]
[363782868,1748869853416,-420.0,0.00019589,2]
[363782869,1748869853426,-578.19,0.00019589,2]
[363782870,1748869853436,-479.74,0.00019589,2]
[363782871,1748869853446,-913.0,0.00019589,2]
[363782872,1748869853458,-954.6,0.00019589,2]
[363782873,1748869853470,-420.0,0.00019589,2]
[363782874,1748869853480,-692.88,0.00019589,2]
[363782875,1748869853491,-3109.79,0.00019589,2]
[363782876,1748869853501,-556.88563026,0.00019589,2]
[363782877,1748869853511,-420.0,0.00019589,2]
[363782878,1748869853521,-420.0,0.00019589,2]
[363782879,1748869853530,-420.0,0.00019589,2]
[363782880,1748869853540,-420.0,0.00019589,2]
[363782881,1748869853550,-562.97,0.00019589,2]
[363782882,1748869853560,-420.0,0.00019589,2]
[363782883,1748869853570,-420.0,0.00019589,2]
[363782884,1748869853580,-610.85,0.00019589,2]
[363782885,1748869853591,-858.69,0.00019589,2]
[363782886,1748869853602,-420.0,0.00019589,2]
[363782887,1748869853612,-420.0,0.00019589,2]
[363782888,1748869853621,-420.0,0.00019589,2]
[363782889,1748869853631,-420.0,0.00019589,2]
[363782890,1748869853641,-1626.62,0.00019589,2]
[363782891,1748869853651,-420.0,0.00019589,2]
[363782892,1748869853661,-726.22,0.00019589,2]
[363782893,1748869853671,-576.86,0.00019589,2]
[363782894,1748869853681,-420.0,0.00019589,2]
[363782895,1748869853691,-420.0,0.00019589,2]
[363782896,1748869853702,-420.0,0.00019589,2]
[363782897,1748869853713,-420.0,0.00019589,2]
[363782898,1748869853723,-1200.64,0.00019589,2]
[363782899,1748869853733,-477.47,0.00019589,2]
[363782900,1748869853743,-420.0,0.00019589,2]
[363782901,1748869853754,-420.0,0.00019589,2]
[363782902,1748869853769,-420.0,0.00019589,2]
[363782903,1748869853779,-420.0,0.00019589,2]
[363782904,1748869853789,-505.97,0.00019589,2]
[363782905,1748869853799,-652.33,0.00019589,2]
[363782906,1748869853810,-420.0,0.00019589,2]
[363782907,1748869853820,-420.0,0.00019589,2]
[363782908,1748869853831,-420.0,0.00019589,2]
[363782909,1748869853841,-420.0,0.00019589,2]
[363782910,1748869853852,-280.44224325,0.00019589,2]
[363782911,1748869853862,-1616.15,0.00019589,2]
[363782912,1748869853872,-420.0,0.00019589,2]
[363782913,1748869853882,-420.0,0.00019589,2]
[363782914,1748869853893,-420.0,0.00019589,2]
[363782915,1748869853903,-420.0,0.00019589,2]
[363782916,1748869853913,-420.0,0.00019589,2]
[363782917,1748869853924,-420.0,0.00019589,2]
[363782918,1748869853934,-420.0,0.00019589,2]
[363782919,1748869853944,-1618.04,0.00019589,2]
[363782920,1748869853955,-420.0,0.00019589,2]
[363782921,1748869853965,-442.27,0.00019589,2]
[363782922,1748869853975,-420.0,0.00019589,2]
[363782923,1748869853986,-457.27,0.00019589,2]
[363782924,1748869853996,-420.0,0.00019589,2]
[363782925,1748869854006,-420.0,0.00019589,2]
[363782926,1748869854016,-420.0,0.00019589,2]
[363782927,1748869854026,-532.26,0.00019589,2]
[363782928,1748869854037,-429.5,0.00019589,2]
[363782929,1748869854047,-420.0,0.00019589,2]
[363782930,1748869854057,-2136.99,0.00019589,2]
[363782931,1748869854067,-1663.46,0.00019589,2]
[363782932,1748869854078,-530.76,0.00019589,2]
[363782933,1748869854088,-2689.83,0.00019589,2]
[363782934,1748869854098,-1284.29,0.00019589,2]
[363782935,1748869854108,-420.0,0.00019589,2]
[363782936,1748869854119,-1064.4,0.00019589,2]
[363782937,1748869854128,-420.0,0.00019589,2]
[363782938,1748869854139,-2159.43,0.00019589,2]
[363782939,1748869854149,-525.32,0.00019589,2]
[363782940,1748869854159,-420.0,0.00019589,2]
[363782941,1748869854169,-375.91160684,0.00019589,2]
[363782942,1748869854179,-420.0,0.00019589,2]
[363782943,1748869854189,-1215.95,0.00019589,2]
[363782944,1748869854200,-420.0,0.00019589,2]
[363782945,1748869854211,-773.91,0.00019589,2]
[363782946,1748869854221,-1710.28,0.00019589,2]
[363782947,1748869854230,-420.0,0.00019589,2]
[363782948,1748869854240,-1218.64,0.00019589,2]
[363782949,1748869854255,-420.0,0.00019589,2]
[363782950,1748869854265,-420.0,0.00019589,2]
[363782951,1748869854275,-420.0,0.00019589,2]
[363782952,1748869854286,-420.0,0.00019589,2]
[363782953,1748869854297,-420.0,0.00019589,2]
[363782954,1748869854307,-1320.76,0.00019589,2]
[363782955,1748869854318,-420.0,0.00019589,2]
[363782956,1748869854328,-420.0,0.00019589,2]
[363782957,1748869854339,-420.0,0.00019589,2]
[363782958,1748869854349,-420.0,0.00019589,2]
[363782959,1748869854359,-8279.57,0.00019589,2]
[363782960,1748869854371,-420.0,0.00019589,2]
[363782961,1748869854381,-420.0,0.00019589,2]
[363782962,1748869854392,-420.0,0.00019589,2]
[363782963,1748869854402,-420.0,0.00019589,2]
[363782964,1748869854412,-420.0,0.00019589,2]
[363782965,1748869854422,-489.65,0.00019589,2]
[363782966,1748869854433,-420.0,0.00019589,2]
[363782967,1748869854443,-420.0,0.00019589,2]
[363782968,1748869854453,-420.0,0.00019589,2]
[363782969,1748869854464,-420.0,0.00019589,2]
[363782970,1748869854473,-420.0,0.00019589,2]
[363782971,1748869854484,-420.0,0.00019589,2]
[363782972,1748869854494,-420.0,0.00019589,2]
[363782973,1748869854505,-618.96,0.00019589,2]
[363782974,1748869854516,-420.0,0.00019589,2]
[363782975,1748869854526,-420.0,0.00019589,2]
[363782976,1748869854536,-420.0,0.00019589,2]
[363782977,1748869854547,-420.0,0.00019589,2]
[363782978,1748869854557,-544.11,0.00019589,2]
[363782979,1748869854567,-420.0,0.00019589,2]
[363782980,1748869854578,-635.69,0.00019589,2]
[363782981,1748869854588,-420.0,0.00019589,2]
[363782982,1748869854598,-533.13,0.00019589,2]
[363782983,1748869854608,-420.0,0.00019589,2]
[363782984,1748869854618,-898.61,0.00019589,2]
[363782985,1748869854628,-420.0,0.00019589,2]
[363782986,1748869854638,-565.0,0.00019593,2]
[363782987,1748869854648,-1468.982498,0.00019599,2]
[363782988,1748869854657,-460.48,0.000196,2]
[363782989,1748869854667,-150.0,0.000196,2]
[363782990,1748869854676,-460.6,0.000196,2]
[363782991,1748869854686,-1300.0,0.000196,7]
[363782992,1748869854695,-460.6,0.000196,2]
[363782993,1748869854706,-598.31,0.000196,2]
[363782994,1748869854723,-807.1,0.000196,2]
[363782995,1748869854734,-460.6,0.000196,2]
[363782996,1748869854744,-244.0,0.00019614,2]
[363782997,1748869854755,-500.0,0.00019616,2]
[363782998,1748869854766,-500.0,0.00019616,2]
[363782999,1748869854777,-500.0,0.00019616,2]
[363783000,1748869854788,-1671.0,0.00019616,2]
[363783001,1748869854798,-500.0,0.00019616,2]
[363783002,1748869854808,-500.0,0.00019616,2]
[363783003,1748869854818,-366.13367363,0.00019626,2]
[363783004,1748869854829,-487.30933952,0.00019626,2]
[363783005,1748869854839,-500.0,0.00019644,2]
[363783006,1748869854849,-500.0,0.00019644,2]
[363783007,1748869854860,-500.0,0.00019644,2]
[363783008,1748869854870,-1671.0,0.00019644,2]
[363783009,1748869854881,-647.66991049,0.00019644,2]
[363783010,1748869854892,-500.0,0.00019644,2]
[363783011,1748869854902,-254.0,0.00019654,2]
[363783012,1748869854912,-500.0,0.00019671,2]
[363783013,1748869854922,-500.0,0.00019671,2]
[363783014,1748869854932,-472.00319151,0.00019671,2]
[363783015,1748869854942,-1671.0,0.00019671,2]
[363783016,1748869854951,-500.0,0.00019671,2]
[363783017,1748869854964,-807.1,0.00019685,2]
[363783018,1748869854974,-460.6,0.00019685,2]
[363783019,1748869854983,-807.1,0.00019685,2]
[363783020,1748869854993,-805.66,0.00019685,2]
[363783021,1748869855003,-460.3,0.00019685,2]
[363783022,1748869855013,-807.1,0.00019685,2]
[363783023,1748869855022,-807.1,0.00019685,2]
[363783024,1748869855032,-807.1,0.00019685,2]
[363783025,1748869855042,-806.37,0.00019686,2]
[363783026,1748869855052,-1562.0,0.00019691,2]
[363783027,1748869855062,-500.0,0.00019699,2]
[363783028,1748869855072,-500.0,0.00019699,2]
[363783029,1748869855082,-1671.0,0.00019699,2]
[363783030,1748869855091,-492.53660825,0.00019699,2]
[363783031,1748869855101,-1000.0,0.000197,2]
[363783032,1748869855110,-1900.0,0.000197,7]
[363783033,1748869855120,-500.0,0.00019725,2]
[363783034,1748869855130,-500.0,0.00019725,2]
[363783035,1748869855139,-1151.0,0.00019726,2]
[363783036,1748869855150,-500.0,0.00019726,2]
[363783037,1748869855160,-500.0,0.00019726,2]
[363783038,1748869855171,-1671.0,0.00019726,2]
[363783039,1748869855180,-444.47,0.00019726,2]
[363783040,1748869855191,-420.0,0.00019726,2]
[363783041,1748869855200,-420.0,0.00019726,2]
[363783042,1748869855211,-420.0,0.00019726,2]
[363783043,1748869855221,-420.0,0.00019726,2]
[363783044,1748869855230,-2140.392003,0.00019726,2]
[363783045,1748869855241,-155.609569,0.00019726,2]
[363783046,1748869855254,-420.0,0.00019726,2]
[363783047,1748869855262,-2003.281763,0.00019726,2]
[363783048,1748869855272,-198.331608,0.00019726,2]
[363783049,1748869855282,-420.0,0.00019726,2]
[363783050,1748869855293,-420.0,0.00019726,2]
[363783051,1748869855303,-420.0,0.00019726,2]
[363783052,1748869855313,-420.0,0.00019726,2]
[363783053,1748869855324,-420.0,0.00019726,2]
[363783054,1748869855335,-420.0,0.00019726,2]
[363783055,1748869855346,-403.03794017,0.00019726,2]
[363783056,1748869855358,-420.0,0.00019726,2]
[363783057,1748869855367,-178.946867,0.00019726,2]
[363783058,1748869855378,-420.0,0.00019726,2]
[363783059,1748869855388,-420.0,0.00019726,2]
[363783060,1748869855398,-420.0,0.00019726,2]
[363783061,1748869855409,-492.51,0.00019726,2]
[363783062,1748869855419,-420.0,0.00019726,2]
[363783063,1748869855429,-420.0,0.00019726,2]
[363783064,1748869855439,-420.0,0.00019726,2]
[363783065,1748869855449,-420.0,0.00019726,2]
[363783066,1748869855461,-420.0,0.00019726,2]
[363783067,1748869855471,-420.0,0.00019726,2]
[363783068,1748869855481,-420.0,0.00019726,2]
[363783069,1748869855491,-420.0,0.00019726,2]
[363783070,1748869855500,-420.0,0.00019726,2]
[363783071,1748869855511,-468.04,0.00019726,2]
[363783072,1748869855522,-420.0,0.00019726,2]
[363783073,1748869855532,-420.0,0.00019726,2]
[363783074,1748869855542,-420.0,0.00019726,2]
[363783075,1748869855553,-420.0,0.00019726,2]
[363783076,1748869855563,-420.0,0.00019726,2]
[363783077,1748869855573,-420.0,0.00019726,2]
[363783078,1748869855582,-420.0,0.00019726,2]
[363783079,1748869855592,-420.0,0.00019726,2]
[363783080,1748869855601,-420.0,0.00019726,2]
[363783081,1748869855610,-259.92,0.00019726,2]
[363783082,1748869855619,-420.0,0.00019726,2]
[363783083,1748869855629,-420.0,0.00019726,2]
[363783084,1748869855639,-420.0,0.00019726,2]
[363783085,1748869855648,-420.0,0.00019726,2]
[363783086,1748869855658,-420.0,0.00019726,2]
[363783087,1748869855668,-449.26,0.00019726,2]
[363783088,1748869855678,-420.0,0.00019726,2]
[363783089,1748869855687,-420.0,0.00019726,2]
[363783090,1748869855696,-420.0,0.00019726,2]
[363783091,1748869855706,-311.73333673,0.00019726,2]
[363783092,1748869855715,-420.0,0.00019726,2]
[363783093,1748869855725,-420.0,0.00019726,2]
[363783094,1748869855734,-420.0,0.00019726,2]
[363783095,1748869855744,-420.0,0.00019726,2]
[363783096,1748869855754,-420.0,0.00019726,2]
[363783097,1748869855763,-420.0,0.00019726,2]
[363783098,1748869855772,-528.58780051,0.00019726,2]
[363783099,1748869855949,-420.0,0.00019726,2]
[363783100,1748869855961,-420.0,0.00019726,2]
[363783101,1748869855972,-420.0,0.00019726,2]
[363783102,1748869855982,-1178.71,0.00019726,2]
[363783103,1748869855992,-1215.12,0.00019726,2]
[363783104,1748869856002,-656.62,0.00019726,2]
[363783105,1748869856011,-420.0,0.00019726,2]
[363783106,1748869856021,-420.0,0.00019726,2]
[363783107,1748869856031,-420.0,0.00019726,2]
[363783108,1748869856041,-420.0,0.00019726,2]
[363783109,1748869856051,-420.0,0.00019726,2]
[363783110,1748869856061,-851.99,0.00019726,2]
[363783111,1748869856071,-695.29,0.00019726,2]
[363783112,1748869856081,-1352.67,0.00019726,2]
[363783113,1748869856091,-420.0,0.00019726,2]
[363783114,1748869856101,-604.89,0.00019726,2]
[363783115,1748869856111,-15295.8,0.00019726,2]
[363783116,1748869856122,-420.0,0.00019726,2]
[363783117,1748869856132,-420.0,0.00019726,2]
[363783118,1748869856142,-420.0,0.00019726,2]
[363783119,1748869856152,-420.0,0.00019726,2]
[363783120,1748869856162,-420.0,0.00019726,2]
[363783121,1748869856172,-420.0,0.00019726,2]
[363783122,1748869856182,-1073.37,0.00019726,2]
[363783123,1748869856192,-704.81,0.00019726,2]
[363783124,1748869856203,-214.65,0.00019726,2]
[363783125,1748869856213,-420.0,0.00019726,2]
[363783126,1748869856223,-1021.91,0.00019726,2]
[363783127,1748869856232,-420.0,0.00019726,2]
[363783128,1748869856243,-1599.29,0.00019726,2]
[363783129,1748869856255,-420.0,0.00019726,2]
[363783130,1748869856265,-462.74,0.00019726,2]
[363783131,1748869856275,-420.0,0.00019726,2]
[363783132,1748869856285,-505.66,0.00019726,2]
[363783133,1748869856297,-4497.37,0.00019726,2]
[363783134,1748869856307,-420.0,0.00019726,2]
[363783135,1748869856317,-420.0,0.00019726,2]
[363783136,1748869856330,-420.0,0.00019726,2]
[363783137,1748869856340,-3829.57,0.00019726,2]
[363783138,1748869856351,-427.65746703,0.00019726,2]
[363783139,1748869856361,-420.0,0.00019726,2]
[363783140,1748869856371,-578.19,0.00019726,2]
[363783141,1748869856382,-913.0,0.00019726,2]
[363783142,1748869856392,-954.6,0.00019726,2]
[363783143,1748869856402,-420.0,0.00019726,2]
[363783144,1748869856413,-692.88,0.00019726,2]
[363783145,1748869856423,-3109.79,0.00019726,2]
[363783146,1748869856433,-420.0,0.00019726,2]
[363783147,1748869856444,-420.0,0.00019726,2]
[363783148,1748869856454,-420.0,0.00019726,2]
[363783149,1748869856464,-420.0,0.00019726,2]
[363783150,1748869856474,-562.97,0.00019726,2]
[363783151,1748869856484,-420.0,0.00019726,2]
[363783152,1748869856494,-420.0,0.00019726,2]
[363783153,1748869856505,-610.85,0.00019726,2]
[363783154,1748869856515,-858.69,0.00019726,2]
[363783155,1748869856525,-249.26,0.00019726,2]
[363783156,1748869856536,-420.0,0.00019726,2]
[363783157,1748869856546,-420.0,0.00019726,2]
[363783158,1748869856556,-420.0,0.00019726,2]
[363783159,1748869856566,-1626.62,0.00019726,2]
[363783160,1748869856576,-420.0,0.00019726,2]
[363783161,1748869856587,-726.22,0.00019726,2]
[363783162,1748869856598,-576.86,0.00019726,2]
[363783163,1748869856608,-420.0,0.00019726,2]
[363783164,1748869856619,-199.81168823,0.00019726,2]
[363783165,1748869856630,-420.0,0.00019726,2]
[363783166,1748869856640,-420.0,0.00019726,2]
[363783167,1748869856650,-1200.64,0.00019726,2]
[363783168,1748869856662,-477.47,0.00019726,2]
[363783169,1748869856672,-420.0,0.00019726,2]
[363783170,1748869856683,-314.02384582,0.00019726,2]
[363783171,1748869856694,-420.0,0.00019726,2]
[363783172,1748869856708,-505.97,0.00019726,2]
[363783173,1748869856717,-420.0,0.00019726,2]
[363783174,1748869856727,-652.33,0.00019726,2]
[363783175,1748869856738,-420.0,0.00019726,2]
[363783176,1748869856747,-420.0,0.00019726,2]
[363783177,1748869856758,-420.0,0.00019726,2]
[363783178,1748869856768,-420.0,0.00019726,2]
[363783179,1748869856777,-1616.15,0.00019726,2]
[363783180,1748869856788,-420.0,0.00019726,2]
[363783181,1748869856798,-420.0,0.00019726,2]
[363783182,1748869856808,-420.0,0.00019726,2]
[363783183,1748869856819,-420.0,0.00019726,2]
[363783184,1748869856828,-420.0,0.00019726,2]
[363783185,1748869856838,-420.0,0.00019726,2]
[363783186,1748869856848,-420.0,0.00019726,2]
[363783187,1748869856859,-1618.04,0.00019726,2]
[363783188,1748869856869,-420.0,0.00019726,2]
[363783189,1748869856879,-442.27,0.00019726,2]
[363783190,1748869856889,-457.27,0.00019726,2]
[363783191,1748869856899,-420.0,0.00019726,2]
[363783192,1748869856910,-420.0,0.00019726,2]
[363783193,1748869856919,-420.0,0.00019726,2]
[363783194,1748869856929,-420.0,0.00019726,2]
[363783195,1748869856940,-532.26,0.00019726,2]
[363783196,1748869856950,-429.5,0.00019726,2]
[363783197,1748869856962,-420.0,0.00019726,2]
[363783198,1748869856971,-2136.99,0.00019726,2]
[363783199,1748869856981,-1663.46,0.00019726,2]
[363783200,1748869856991,-530.76,0.00019726,2]
[363783201,1748869857001,-2689.83,0.00019726,2]
[363783202,1748869857011,-1284.29,0.00019726,2]
[363783203,1748869857022,-187.70999396,0.00019726,2]
[363783204,1748869857032,-1064.4,0.00019726,2]
[363783205,1748869857042,-420.0,0.00019726,2]
[363783206,1748869857052,-2159.43,0.00019726,2]
[363783207,1748869857062,-525.32,0.00019726,2]
[363783208,1748869857071,-420.0,0.00019726,2]
[363783209,1748869857081,-420.0,0.00019726,2]
[363783210,1748869857091,-1215.95,0.00019726,2]
[363783211,1748869857102,-420.0,0.00019726,2]
[363783212,1748869857111,-773.91,0.00019726,2]
[363783213,1748869857121,-1710.28,0.00019726,2]
[363783214,1748869857131,-420.0,0.00019726,2]
[363783215,1748869857140,-1218.64,0.00019726,2]
[363783216,1748869857150,-281.19,0.00019726,2]
[363783217,1748869857160,-420.0,0.00019726,2]
[363783218,1748869857170,-420.0,0.00019726,2]
[363783219,1748869857179,-420.0,0.00019726,2]
[363783220,1748869857188,-420.0,0.00019726,2]
[363783221,1748869857196,-1320.76,0.00019726,2]
[363783222,1748869857207,-420.0,0.00019726,2]
[363783223,1748869857215,-420.0,0.00019726,2]
[363783224,1748869857225,-420.0,0.00019726,2]
[363783225,1748869857234,-420.0,0.00019726,2]
[363783226,1748869857244,-8279.57,0.00019726,2]
[363783227,1748869857255,-420.0,0.00019726,2]
[363783228,1748869857263,-420.0,0.00019726,2]
[363783229,1748869857272,-230.28,0.00019726,2]
[363783230,1748869857281,-420.0,0.00019726,2]
[363783231,1748869857290,-420.0,0.00019726,2]
[363783232,1748869857299,-489.65,0.00019726,2]
[363783233,1748869857309,-420.0,0.00019726,2]
[363783234,1748869857319,-420.0,0.00019726,2]
[363783235,1748869857330,-420.0,0.00019726,2]
[363783236,1748869857339,-420.0,0.00019726,2]
[363783237,1748869857349,-420.0,0.00019726,2]
[363783238,1748869857358,-420.0,0.00019726,2]
[363783239,1748869857368,-420.0,0.00019726,2]
[363783240,1748869857377,-618.96,0.00019726,2]
[363783241,1748869857386,-420.0,0.00019726,2]
[363783242,1748869857395,-420.0,0.00019726,2]
[363783243,1748869857405,-420.0,0.00019726,2]
[363783244,1748869857415,-420.0,0.00019726,2]
[363783245,1748869857424,-544.11,0.00019726,2]
[363783246,1748869857434,-420.0,0.00019726,2]
[363783247,1748869857444,-635.69,0.00019726,2]
[363783248,1748869857455,-420.0,0.00019726,2]
[363783249,1748869857464,-533.13,0.00019726,2]
[363783250,1748869857472,-420.0,0.00019726,2]
[363783251,1748869857482,-898.61,0.00019726,2]
[363783252,1748869857492,-420.0,0.00019726,2]
[363783253,1748869857502,-1362.00062862,0.00019726,2]
[363783254,1748869857512,-500.0,0.00019753,2]
[363783255,1748869857521,-500.0,0.00019753,2]
[363783256,1748869857530,-1671.0,0.00019753,2]
[363783257,1748869857541,-500.0,0.00019781,2]
[363783258,1748869857551,-500.0,0.00019781,2]
[363783259,1748869857560,-1671.0,0.00019781,2]
[363783260,1748869857569,-263.89711962,0.00019787,2]
[363783261,1748869857579,-2600.0,0.000198,7]
[363783262,1748869857587,-450.0,0.00019808,2]
[363783263,1748869857595,-248.41830653,0.00019808,2]
[363783264,1748869857603,-1671.0,0.00019808,2]
[363783265,1748869857610,-635.0,0.00019814,2]
[363783266,1748869857617,-801.0,0.00019814,2]
[363783267,1748869857624,-1467.0,0.00019814,2]